[Event "Titled Tuesday Blitz February 28 Late 2023"]
[White "Zhang, Alan"]
[Black "Souza, Gustavo Horokoski De"]
[WhiteFideId "30936870"]
[BlackFideId "2146584"]
[WhiteElo "2067"]
[BlackElo "1859"]
[Result "1-0"]
[Round "06"]
[TimeControl "180+2"]
[Date "2023.02.28"]
[WhiteClock "0:00:15"]
[BlackClock "0:00:04"]

1. e4 {[%clk 0:00:17]}  e6 {[%clk 0:02:53]} 2. d4 {[%clk 0:00:17]}  d5 {[%clk 0:02:53]} 3. Nc3 {[%clk 0:00:17]}  Nf6 {[%clk 0:02:52]} 4. e5 {[%clk 0:00:18]}  Nfd7 {[%clk 0:02:52]} 5. Nce2 {[%clk 0:00:19]}  c5 {[%clk 0:02:47]} 6. c3 {[%clk 0:00:19]}  Nc6 {[%clk 0:02:42]} 7. f4 {[%clk 0:00:20]}  Qb6 {[%clk 0:02:39]} 8. Nf3 {[%clk 0:00:20]}  Be7 {[%clk 0:02:35]} 9. a3 {[%clk 0:00:20]}  cxd4 {[%clk 0:02:27]} 10. cxd4 {[%clk 0:00:20]}  Na5 {[%clk 0:02:27]} 11. b4 {[%clk 0:00:19]}  Nc4 {[%clk 0:02:26]} 12. Nc3 {[%clk 0:00:20]}  Qc7 {[%clk 0:02:23]} 13. Qd3 {[%clk 0:00:19]}  b6 {[%clk 0:02:19]} 14. Be2 {[%clk 0:00:17]}  h5 {[%clk 0:02:18]} 15. O-O {[%clk 0:00:17]}  h4 {[%clk 0:02:15]} 16. f5 {[%clk 0:00:17]}  h3 {[%clk 0:02:06]} 17. fxe6 {[%clk 0:00:17]}  Ndxe5 {[%clk 0:00:17]} 18. dxe5 {[%clk 0:00:15]}  Bxe6 {[%clk 0:00:12]} 19. Nxd5 {[%clk 0:00:14]}  Bxd5 {[%clk 0:00:06]} 20. Qxd5 {[%clk 0:00:15]}  b5 {[%clk 0:00:04]} 21. Qxa8+ {[%clk 0:00:15]} 1-0


[Site "https://www.chess.com"]

[Event "Titled Tuesday Blitz February 28 Late 2023"]
[White "Dias, Joao Batista"]
[Black "Lopez Perdomo, Juan David"]
[WhiteFideId "2108240"]
[BlackFideId "4405137"]
[WhiteElo "1907"]
[BlackElo "1965"]
[Result "0-1"]
[Round "06"]
[TimeControl "180+2"]
[Date "2023.02.28"]
[WhiteClock "0:01:58"]
[BlackClock "0:01:39"]

1. e4 {[%clk 0:02:57]}  e6 {[%clk 0:03:00]} 2. d4 {[%clk 0:02:56]}  d5 {[%clk 0:03:00]} 3. Nd2 {[%clk 0:02:55]}  Nf6 {[%clk 0:03:00]} 4. c3 {[%clk 0:02:55]}  dxe4 {[%clk 0:02:59]} 5. Qe2 {[%clk 0:02:55]}  c5 {[%clk 0:02:54]} 6. dxc5 {[%clk 0:02:53]}  Bxc5 {[%clk 0:02:54]} 7. Nxe4 {[%clk 0:02:48]}  Nxe4 {[%clk 0:02:47]} 8. Qxe4 {[%clk 0:02:47]}  Nd7 {[%clk 0:02:45]} 9. Bb5 {[%clk 0:02:46]}  O-O {[%clk 0:02:44]} 10. Be3 {[%clk 0:02:39]}  Qb6 {[%clk 0:02:41]} 11. Bxd7 {[%clk 0:02:37]}  Qxb2 {[%clk 0:02:38]} 12. Bxc5 {[%clk 0:02:35]}  Qxa1+ {[%clk 0:02:32]} 13. Ke2 {[%clk 0:02:34]}  Qb2+ {[%clk 0:02:32]} 14. Kf3 {[%clk 0:02:31]}  Bxd7 {[%clk 0:02:32]} 15. Qb4 {[%clk 0:02:25]}  Bc6+ {[%clk 0:02:10]} 16. Kg3 {[%clk 0:02:23]}  Qd2 {[%clk 0:01:59]} 17. Bxf8 {[%clk 0:02:21]}  Qg5+ {[%clk 0:01:59]} 18. Qg4 {[%clk 0:02:16]}  Qxg4+ {[%clk 0:01:59]} 19. Kxg4 {[%clk 0:02:15]}  Bxg2 {[%clk 0:02:00]} 20. Bc5 {[%clk 0:02:12]}  Rc8 {[%clk 0:01:55]} 21. Bxa7 {[%clk 0:02:08]}  Bxh1 {[%clk 0:01:55]} 22. Bd4 {[%clk 0:02:07]}  Rc4 {[%clk 0:01:51]} 23. Kg3 {[%clk 0:02:06]}  Ra4 {[%clk 0:01:47]} 24. f3 {[%clk 0:02:05]}  Rxa2 {[%clk 0:01:47]} 25. Nh3 {[%clk 0:02:01]}  Rg2+ {[%clk 0:01:43]} 26. Kf4 {[%clk 0:02:01]}  f6 {[%clk 0:01:40]} 27. Nf2 {[%clk 0:02:00]}  e5+ {[%clk 0:01:40]} 28. Ke3 {[%clk 0:01:58]}  exd4+ {[%clk 0:01:39]} 0-1


[Site "https://www.chess.com"]

[Event "Titled Tuesday Blitz February 28 Late 2023"]
[White "Vargas, Mauricio"]
[Black "Quirke, Jeffrey"]
[WhiteFideId "4404572"]
[BlackFideId "2013029"]
[WhiteElo "2025"]
[BlackElo "2192"]
[Result "0-1"]
[Round "06"]
[TimeControl "180+2"]
[Date "2023.02.28"]
[WhiteClock "0:00:04"]
[BlackClock "0:00:28"]

1. e4 {[%clk 0:02:31]}  g6 {[%clk 0:02:57]} 2. f4 {[%clk 0:02:30]}  Bg7 {[%clk 0:02:56]} 3. Nf3 {[%clk 0:02:30]}  d5 {[%clk 0:02:49]} 4. e5 {[%clk 0:02:28]}  Bg4 {[%clk 0:02:47]} 5. h3 {[%clk 0:02:28]}  Bxf3 {[%clk 0:02:47]} 6. Qxf3 {[%clk 0:02:29]}  h5 {[%clk 0:02:45]} 7. Nc3 {[%clk 0:02:27]}  e6 {[%clk 0:02:44]} 8. g3 {[%clk 0:02:21]}  Ne7 {[%clk 0:02:42]} 9. Bg2 {[%clk 0:02:20]}  c5 {[%clk 0:02:39]} 10. Nb5 {[%clk 0:02:17]}  Nbc6 {[%clk 0:02:35]} 11. Nd6+ {[%clk 0:02:17]}  Kf8 {[%clk 0:02:35]} 12. Nxb7 {[%clk 0:02:14]}  Qb6 {[%clk 0:02:32]} 13. Nd6 {[%clk 0:02:11]}  Nd4 {[%clk 0:02:15]} 14. Qd1 {[%clk 0:02:07]}  Nef5 {[%clk 0:02:15]} 15. Nxf5 {[%clk 0:02:03]}  Nxf5 {[%clk 0:02:13]} 16. g4 {[%clk 0:02:02]}  hxg4 {[%clk 0:01:48]} 17. hxg4 {[%clk 0:02:02]}  Rxh1+ {[%clk 0:01:48]} 18. Bxh1 {[%clk 0:02:03]}  Ng3 {[%clk 0:01:48]} 19. Bf3 {[%clk 0:01:59]}  c4 {[%clk 0:01:48]} 20. d4 {[%clk 0:01:28]}  cxd3 {[%clk 0:01:48]} 21. Qxd3 {[%clk 0:01:19]}  Qg1+ {[%clk 0:01:47]} 22. Kd2 {[%clk 0:01:18]}  Qf2+ {[%clk 0:01:28]} 23. Be2 {[%clk 0:01:17]}  Qxf4+ {[%clk 0:01:25]} 24. Qe3 {[%clk 0:01:16]}  Nxe2 {[%clk 0:01:11]} 25. Kxe2 {[%clk 0:01:11]}  Qxg4+ {[%clk 0:01:11]} 26. Qf3 {[%clk 0:01:10]}  Qxf3+ {[%clk 0:01:10]} 27. Kxf3 {[%clk 0:01:10]}  Bxe5 {[%clk 0:01:11]} 28. c3 {[%clk 0:01:06]}  Ke7 {[%clk 0:01:08]} 29. Be3 {[%clk 0:01:05]}  a6 {[%clk 0:01:06]} 30. Rh1 {[%clk 0:01:02]}  Rh8 {[%clk 0:01:05]} 31. Bg5+ {[%clk 0:00:58]}  Kd7 {[%clk 0:01:02]} 32. Rd1 {[%clk 0:00:55]}  Rh5 {[%clk 0:00:54]} 33. Be3 {[%clk 0:00:50]}  Kc6 {[%clk 0:00:53]} 34. Rf1 {[%clk 0:00:23]}  f5 {[%clk 0:00:53]} 35. Rg1 {[%clk 0:00:20]}  Rh2 {[%clk 0:00:47]} 36. Rxg6 {[%clk 0:00:17]}  Kd6 {[%clk 0:00:48]} 37. Rg8 {[%clk 0:00:15]}  Rxb2 {[%clk 0:00:45]} 38. a4 {[%clk 0:00:13]}  Bxc3 {[%clk 0:00:40]} 39. Ra8 {[%clk 0:00:11]}  a5 {[%clk 0:00:39]} 40. Ra6+ {[%clk 0:00:10]}  Kd7 {[%clk 0:00:38]} 41. Bf4 {[%clk 0:00:09]}  e5 {[%clk 0:00:36]} 42. Bg5 {[%clk 0:00:08]}  d4 {[%clk 0:00:32]} 43. Ra7+ {[%clk 0:00:06]}  Kc6 {[%clk 0:00:32]} 44. Re7 {[%clk 0:00:06]}  e4+ {[%clk 0:00:31]} 45. Kf4 {[%clk 0:00:05]}  Rf2+ {[%clk 0:00:30]} 46. Ke5 {[%clk 0:00:05]}  d3+ {[%clk 0:00:29]} 47. Ke6 {[%clk 0:00:04]}  d2 {[%clk 0:00:28]} 0-1


[Site "https://www.chess.com"]

[Event "Titled Tuesday Blitz February 28 Late 2023"]
[White "Nakamura, Hikaru"]
[Black "Firouzja, Alireza"]
[WhiteFideId "2016192"]
[BlackFideId "12573981"]
[WhiteElo "2879"]
[BlackElo "2904"]
[Result "1/2-1/2"]
[Round "07"]
[TimeControl "180+2"]
[Date "2023.02.28"]
[WhiteClock "0:00:05"]
[BlackClock "0:00:07"]

1. e4 {[%clk 0:03:00]}  e5 {[%clk 0:03:00]} 2. Nc3 {[%clk 0:02:59]}  Nf6 {[%clk 0:03:00]} 3. Bc4 {[%clk 0:02:57]}  Bc5 {[%clk 0:03:00]} 4. d3 {[%clk 0:02:57]}  c6 {[%clk 0:03:00]} 5. Bb3 {[%clk 0:02:55]}  O-O {[%clk 0:02:53]} 6. Nf3 {[%clk 0:02:54]}  d6 {[%clk 0:02:53]} 7. h3 {[%clk 0:02:52]}  a5 {[%clk 0:02:52]} 8. O-O {[%clk 0:02:51]}  b5 {[%clk 0:02:47]} 9. a3 {[%clk 0:02:47]}  Re8 {[%clk 0:02:44]} 10. Ne2 {[%clk 0:02:44]}  Nbd7 {[%clk 0:02:32]} 11. Ng3 {[%clk 0:02:38]}  Nf8 {[%clk 0:02:31]} 12. c3 {[%clk 0:02:32]}  Bb6 {[%clk 0:02:17]} 13. a4 {[%clk 0:02:25]}  Be6 {[%clk 0:02:02]} 14. Bc2 {[%clk 0:02:07]}  b4 {[%clk 0:01:53]} 15. d4 {[%clk 0:01:53]}  bxc3 {[%clk 0:01:44]} 16. bxc3 {[%clk 0:01:54]}  Ng6 {[%clk 0:01:44]} 17. Re1 {[%clk 0:01:53]}  Bc7 {[%clk 0:01:35]} 18. Ng5 {[%clk 0:01:38]}  Bc4 {[%clk 0:01:34]} 19. Nf5 {[%clk 0:01:05]}  d5 {[%clk 0:01:31]} 20. Ne3 {[%clk 0:01:05]}  Ba6 {[%clk 0:01:23]} 21. exd5 {[%clk 0:00:50]}  cxd5 {[%clk 0:01:22]} 22. dxe5 {[%clk 0:00:48]}  Bxe5 {[%clk 0:01:21]} 23. Ra3 {[%clk 0:00:48]}  Rc8 {[%clk 0:01:14]} 24. Bd2 {[%clk 0:00:48]}  Ne4 {[%clk 0:00:54]} 25. Nxe4 {[%clk 0:00:33]}  dxe4 {[%clk 0:00:54]} 26. c4 {[%clk 0:00:31]}  Bxc4 {[%clk 0:00:46]} 27. Nxc4 {[%clk 0:00:19]}  Rxc4 {[%clk 0:00:47]} 28. Rxe4 {[%clk 0:00:17]}  Rxe4 {[%clk 0:00:30]} 29. Bxe4 {[%clk 0:00:18]}  Bh2+ {[%clk 0:00:22]} 30. Kxh2 {[%clk 0:00:16]}  Qd6+ {[%clk 0:00:22]} 31. Rg3 {[%clk 0:00:15]}  Rxe4 {[%clk 0:00:23]} 32. Qc2 {[%clk 0:00:15]}  Rd4 {[%clk 0:00:09]} 33. Qc8+ {[%clk 0:00:12]}  Qf8 {[%clk 0:00:06]} 34. Qxf8+ {[%clk 0:00:07]}  Kxf8 {[%clk 0:00:07]} 35. Bxa5 {[%clk 0:00:05]} 1/2-1/2


[Site "https://www.chess.com"]

[Event "Titled Tuesday Blitz February 28 Late 2023"]
[White "Carlsen, Magnus"]
[Black "Yu, Yangyi"]
[WhiteFideId "1503014"]
[BlackFideId "8603820"]
[WhiteElo "2852"]
[BlackElo "2783"]
[Result "1-0"]
[Round "07"]
[TimeControl "180+2"]
[Date "2023.02.28"]
[WhiteClock "0:00:46"]
[BlackClock "0:00:14"]

1. e4 {[%clk 0:03:00]}  e5 {[%clk 0:02:58]} 2. Nf3 {[%clk 0:03:00]}  Nf6 {[%clk 0:02:58]} 3. Nxe5 {[%clk 0:02:58]}  d6 {[%clk 0:02:58]} 4. Nf3 {[%clk 0:02:58]}  Nxe4 {[%clk 0:02:58]} 5. d4 {[%clk 0:02:59]}  d5 {[%clk 0:02:58]} 6. Bd3 {[%clk 0:03:00]}  Nc6 {[%clk 0:02:58]} 7. O-O {[%clk 0:02:59]}  Be7 {[%clk 0:02:58]} 8. c4 {[%clk 0:02:54]}  Nb4 {[%clk 0:02:54]} 9. Be2 {[%clk 0:02:54]}  O-O {[%clk 0:02:54]} 10. a3 {[%clk 0:02:50]}  Nc6 {[%clk 0:02:54]} 11. cxd5 {[%clk 0:02:50]}  Qxd5 {[%clk 0:02:54]} 12. Nc3 {[%clk 0:02:51]}  Nxc3 {[%clk 0:02:54]} 13. bxc3 {[%clk 0:02:52]}  Na5 {[%clk 0:02:45]} 14. Re1 {[%clk 0:02:38]}  Bf5 {[%clk 0:02:37]} 15. c4 {[%clk 0:02:35]}  Qd8 {[%clk 0:02:37]} 16. Bd2 {[%clk 0:02:20]}  c5 {[%clk 0:02:13]} 17. d5 {[%clk 0:02:17]}  Bf6 {[%clk 0:02:00]} 18. Ra2 {[%clk 0:02:11]}  Re8 {[%clk 0:01:54]} 19. Bf1 {[%clk 0:02:03]}  Rxe1 {[%clk 0:01:50]} 20. Nxe1 {[%clk 0:01:48]}  b5 {[%clk 0:01:42]} 21. Qf3 {[%clk 0:01:11]}  Bb1 {[%clk 0:01:34]} 22. d6 {[%clk 0:01:11]}  Rb8 {[%clk 0:00:59]} 23. Bxa5 {[%clk 0:01:06]}  Qxa5 {[%clk 0:00:57]} 24. Re2 {[%clk 0:01:06]}  bxc4 {[%clk 0:00:48]} 25. d7 {[%clk 0:01:06]}  Rf8 {[%clk 0:00:33]} 26. Re8 {[%clk 0:01:02]}  c3 {[%clk 0:00:20]} 27. Qd5 {[%clk 0:00:49]}  Bg6 {[%clk 0:00:14]} 28. Qd6 {[%clk 0:00:46]} 1-0


[Site "https://www.chess.com"]

[Event "Titled Tuesday Blitz February 28 Late 2023"]
[White "Andreikin, Dmitry"]
[Black "Vachier-Lagrave, Maxime"]
[WhiteFideId "4158814"]
[BlackFideId "623539"]
[WhiteElo "2736"]
[BlackElo "2740"]
[Result "1-0"]
[Round "07"]
[TimeControl "180+2"]
[Date "2023.02.28"]
[WhiteClock "0:00:04"]
[BlackClock "0:00:02"]

1. Nf3 {[%clk 0:03:00]}  d5 {[%clk 0:02:58]} 2. d4 {[%clk 0:03:00]}  e6 {[%clk 0:02:56]} 3. c4 {[%clk 0:03:00]}  dxc4 {[%clk 0:02:55]} 4. e3 {[%clk 0:02:59]}  Nf6 {[%clk 0:02:56]} 5. Bxc4 {[%clk 0:02:59]}  a6 {[%clk 0:02:56]} 6. O-O {[%clk 0:02:59]}  c5 {[%clk 0:02:57]} 7. Qe2 {[%clk 0:02:56]}  b5 {[%clk 0:02:52]} 8. Bb3 {[%clk 0:02:56]}  Bb7 {[%clk 0:02:44]} 9. Rd1 {[%clk 0:02:56]}  Nbd7 {[%clk 0:02:40]} 10. a4 {[%clk 0:02:55]}  c4 {[%clk 0:02:39]} 11. Bc2 {[%clk 0:02:54]}  Be7 {[%clk 0:02:33]} 12. e4 {[%clk 0:02:51]}  O-O {[%clk 0:02:30]} 13. Bf4 {[%clk 0:02:41]}  Re8 {[%clk 0:02:22]} 14. Nbd2 {[%clk 0:02:39]}  Nf8 {[%clk 0:02:19]} 15. Ne5 {[%clk 0:02:37]}  Qb6 {[%clk 0:02:00]} 16. Ndf3 {[%clk 0:02:34]}  Ng6 {[%clk 0:01:55]} 17. Nxg6 {[%clk 0:02:18]}  hxg6 {[%clk 0:01:56]} 18. h4 {[%clk 0:02:09]}  Rac8 {[%clk 0:01:52]} 19. axb5 {[%clk 0:02:03]}  axb5 {[%clk 0:01:51]} 20. Bg5 {[%clk 0:02:00]}  b4 {[%clk 0:01:43]} 21. Ba4 {[%clk 0:01:27]}  Red8 {[%clk 0:01:38]} 22. d5 {[%clk 0:01:24]}  exd5 {[%clk 0:01:29]} 23. e5 {[%clk 0:01:24]}  d4 {[%clk 0:01:29]} 24. exf6 {[%clk 0:01:14]}  Bxf6 {[%clk 0:01:30]} 25. Bxf6 {[%clk 0:01:06]}  Qxf6 {[%clk 0:01:17]} 26. Qe5 {[%clk 0:01:06]}  Bxf3 {[%clk 0:01:16]} 27. Qxf6 {[%clk 0:01:05]}  gxf6 {[%clk 0:01:17]} 28. gxf3 {[%clk 0:01:05]}  d3 {[%clk 0:01:14]} 29. Rac1 {[%clk 0:00:58]}  Rd4 {[%clk 0:01:13]} 30. Bb5 {[%clk 0:00:51]}  Rc5 {[%clk 0:01:02]} 31. Ba6 {[%clk 0:00:51]}  Rxh4 {[%clk 0:01:02]} 32. f4 {[%clk 0:00:46]}  Rch5 {[%clk 0:00:52]} 33. Bb7 {[%clk 0:00:41]}  Rxf4 {[%clk 0:00:50]} 34. b3 {[%clk 0:00:39]}  Rg5+ {[%clk 0:00:46]} 35. Kf1 {[%clk 0:00:32]}  Rfg4 {[%clk 0:00:35]} 36. f3 {[%clk 0:00:20]}  Rg1+ {[%clk 0:00:35]} 37. Kf2 {[%clk 0:00:20]}  R5g2+ {[%clk 0:00:22]} 38. Ke3 {[%clk 0:00:20]}  Rxd1 {[%clk 0:00:17]} 39. Rxd1 {[%clk 0:00:20]}  cxb3 {[%clk 0:00:16]} 40. Rxd3 {[%clk 0:00:18]}  b2 {[%clk 0:00:14]} 41. Rb3 {[%clk 0:00:18]}  f5 {[%clk 0:00:09]} 42. Rxb4 {[%clk 0:00:16]}  Kg7 {[%clk 0:00:09]} 43. Ba6 {[%clk 0:00:16]}  g5 {[%clk 0:00:08]} 44. Be2 {[%clk 0:00:16]}  f4+ {[%clk 0:00:07]} 45. Kd3 {[%clk 0:00:15]}  f5 {[%clk 0:00:06]} 46. Rxb2 {[%clk 0:00:15]}  g4 {[%clk 0:00:07]} 47. Rb4 {[%clk 0:00:15]}  gxf3 {[%clk 0:00:06]} 48. Bxf3 {[%clk 0:00:15]}  Ra2 {[%clk 0:00:06]} 49. Rxf4 {[%clk 0:00:14]}  Kf6 {[%clk 0:00:07]} 50. Rb4 {[%clk 0:00:13]}  Kg5 {[%clk 0:00:07]} 51. Ke3 {[%clk 0:00:13]}  Ra3+ {[%clk 0:00:07]} 52. Kf2 {[%clk 0:00:13]}  Ra2+ {[%clk 0:00:08]} 53. Kg3 {[%clk 0:00:14]}  Ra3 {[%clk 0:00:09]} 54. Kf2 {[%clk 0:00:13]}  Ra2+ {[%clk 0:00:09]} 55. Be2 {[%clk 0:00:14]}  Ra3 {[%clk 0:00:09]} 56. Rb5 {[%clk 0:00:14]}  Rc3 {[%clk 0:00:09]} 57. Ke1 {[%clk 0:00:12]}  Ra3 {[%clk 0:00:09]} 58. Bd1 {[%clk 0:00:11]}  Re3+ {[%clk 0:00:07]} 59. Kd2 {[%clk 0:00:11]}  Re8 {[%clk 0:00:05]} 60. Bc2 {[%clk 0:00:11]}  Rf8 {[%clk 0:00:06]} 61. Bd3 {[%clk 0:00:10]}  Rf7 {[%clk 0:00:06]} 62. Ke3 {[%clk 0:00:11]}  Rf8 {[%clk 0:00:06]} 63. Kf3 {[%clk 0:00:11]}  Rf7 {[%clk 0:00:06]} 64. Rb6 {[%clk 0:00:11]}  Rd7 {[%clk 0:00:06]} 65. Rb3 {[%clk 0:00:09]}  Rh7 {[%clk 0:00:05]} 66. Bf1 {[%clk 0:00:07]}  Rc7 {[%clk 0:00:05]} 67. Rd3 {[%clk 0:00:07]}  Rc5 {[%clk 0:00:05]} 68. Kf2 {[%clk 0:00:07]}  Ra5 {[%clk 0:00:05]} 69. Be2 {[%clk 0:00:07]}  Kf4 {[%clk 0:00:05]} 70. Rd4+ {[%clk 0:00:07]}  Kg5 {[%clk 0:00:06]} 71. Bd3 {[%clk 0:00:07]}  Rc5 {[%clk 0:00:06]} 72. Kf3 {[%clk 0:00:07]}  Ra5 {[%clk 0:00:06]} 73. Rd8 {[%clk 0:00:07]}  Rc5 {[%clk 0:00:03]} 74. Rg8+ {[%clk 0:00:07]}  Kf6 {[%clk 0:00:04]} 75. Kf4 {[%clk 0:00:07]}  Ra5 {[%clk 0:00:05]} 76. Rf8+ {[%clk 0:00:07]}  Ke7 {[%clk 0:00:05]} 77. Rb8 {[%clk 0:00:07]}  Ra4+ {[%clk 0:00:05]} 78. Kxf5 {[%clk 0:00:05]}  Ra5+ {[%clk 0:00:06]} 79. Bb5 {[%clk 0:00:04]}  Kd6 {[%clk 0:00:06]} 80. Rb7 {[%clk 0:00:04]}  Kc5 {[%clk 0:00:07]} 81. Be8 {[%clk 0:00:04]}  Kd4+ {[%clk 0:00:07]} 82. Ke6 {[%clk 0:00:04]}  Re5+ {[%clk 0:00:07]} 83. Kf7 {[%clk 0:00:04]}  Rf5+ {[%clk 0:00:07]} 84. Kg6 {[%clk 0:00:04]}  Rd5 {[%clk 0:00:08]} 85. Bf7 {[%clk 0:00:04]}  Rc5 {[%clk 0:00:08]} 86. Kf6 {[%clk 0:00:04]}  Rc6+ {[%clk 0:00:08]} 87. Be6 {[%clk 0:00:04]}  Rc5 {[%clk 0:00:09]} 88. Rd7+ {[%clk 0:00:04]}  Kc3 {[%clk 0:00:09]} 89. Bd5 {[%clk 0:00:04]}  Kd4 {[%clk 0:00:08]} 90. Ke6 {[%clk 0:00:04]}  Kc3 {[%clk 0:00:09]} 91. Ke5 {[%clk 0:00:03]}  Ra5 {[%clk 0:00:09]} 92. Rb7 {[%clk 0:00:03]}  Rc5 {[%clk 0:00:09]} 93. Rb3+ {[%clk 0:00:03]}  Kc2 {[%clk 0:00:09]} 94. Ra3 {[%clk 0:00:04]}  Rc3 {[%clk 0:00:09]} 95. Ra2+ {[%clk 0:00:04]}  Kd3 {[%clk 0:00:09]} 96. Rh2 {[%clk 0:00:05]}  Ke3 {[%clk 0:00:10]} 97. Rg2 {[%clk 0:00:03]}  Kd3 {[%clk 0:00:10]} 98. Be4+ {[%clk 0:00:04]}  Ke3 {[%clk 0:00:10]} 99. Ra2 {[%clk 0:00:04]}  Rc5+ {[%clk 0:00:10]} 100. Bd5 {[%clk 0:00:04]}  Rc3 {[%clk 0:00:10]} 101. Ra1 {[%clk 0:00:04]}  Kd3 {[%clk 0:00:11]} 102. Re1 {[%clk 0:00:04]}  Kd2 {[%clk 0:00:11]} 103. Rh1 {[%clk 0:00:04]}  Ke3 {[%clk 0:00:11]} 104. Rh2 {[%clk 0:00:02]}  Kd3 {[%clk 0:00:11]} 105. Be4+ {[%clk 0:00:02]}  Ke3 {[%clk 0:00:12]} 106. Rh4 {[%clk 0:00:03]}  Rc5+ {[%clk 0:00:12]} 107. Bd5 {[%clk 0:00:03]}  Rc3 {[%clk 0:00:12]} 108. Rg4 {[%clk 0:00:04]}  Kd3 {[%clk 0:00:12]} 109. Rd4+ {[%clk 0:00:04]}  Ke3 {[%clk 0:00:13]} 110. Bc4 {[%clk 0:00:04]}  Ra3 {[%clk 0:00:12]} 111. Re4+ {[%clk 0:00:04]}  Kd2 {[%clk 0:00:12]} 112. Kd4 {[%clk 0:00:04]}  Rg3 {[%clk 0:00:11]} 113. Re2+ {[%clk 0:00:05]}  Kd1 {[%clk 0:00:11]} 114. Rh2 {[%clk 0:00:04]}  Ke1 {[%clk 0:00:10]} 115. Bd3 {[%clk 0:00:04]}  Rg7 {[%clk 0:00:09]} 116. Re2+ {[%clk 0:00:02]}  Kd1 {[%clk 0:00:10]} 117. Bc4 {[%clk 0:00:03]}  Rg3 {[%clk 0:00:09]} 118. Rh2 {[%clk 0:00:02]}  Ra3 {[%clk 0:00:09]} 119. Bd3 {[%clk 0:00:02]}  Kc1 {[%clk 0:00:07]} 120. Ke3 {[%clk 0:00:03]}  Rc3 {[%clk 0:00:06]} 121. Ra2 {[%clk 0:00:03]}  Rc7 {[%clk 0:00:06]} 122. Kd4 {[%clk 0:00:03]}  Rc8 {[%clk 0:00:05]} 123. Bc4 {[%clk 0:00:03]}  Kb1 {[%clk 0:00:04]} 124. Rf2 {[%clk 0:00:03]}  Re8 {[%clk 0:00:03]} 125. Kc3 {[%clk 0:00:03]}  Re1 {[%clk 0:00:03]} 126. Bd3+ {[%clk 0:00:03]}  Kc1 {[%clk 0:00:03]} 127. Ra2 {[%clk 0:00:03]}  Re3 {[%clk 0:00:02]} 128. Ra1# {[%clk 0:00:04]} 1-0


[Site "https://www.chess.com"]

[Event "Titled Tuesday Blitz February 28 Late 2023"]
[White "Swiercz, Dariusz"]
[Black "Martinez Alcantara, Jose Eduardo"]
[WhiteFideId "1126881"]
[BlackFideId "3805662"]
[WhiteElo "2627"]
[BlackElo "2712"]
[Result "1-0"]
[Round "07"]
[TimeControl "180+2"]
[Date "2023.02.28"]
[WhiteClock "0:00:06"]
[BlackClock "0:00:04"]

1. d4 {[%clk 0:03:00]}  Nf6 {[%clk 0:03:00]} 2. c4 {[%clk 0:03:01]}  e6 {[%clk 0:03:00]} 3. Nc3 {[%clk 0:03:02]}  Bb4 {[%clk 0:03:01]} 4. e3 {[%clk 0:03:02]}  O-O {[%clk 0:03:01]} 5. Bd2 {[%clk 0:03:02]}  d5 {[%clk 0:03:01]} 6. Nf3 {[%clk 0:03:02]}  a6 {[%clk 0:03:02]} 7. a3 {[%clk 0:02:52]}  Be7 {[%clk 0:03:00]} 8. c5 {[%clk 0:02:50]}  Ne4 {[%clk 0:02:38]} 9. Nxe4 {[%clk 0:01:53]}  dxe4 {[%clk 0:02:39]} 10. Ne5 {[%clk 0:01:53]}  Nd7 {[%clk 0:02:35]} 11. Nxd7 {[%clk 0:01:45]}  Bxd7 {[%clk 0:02:30]} 12. Bc4 {[%clk 0:01:45]}  Bb5 {[%clk 0:02:21]} 13. Qb3 {[%clk 0:01:40]}  Qd7 {[%clk 0:02:16]} 14. O-O {[%clk 0:01:31]}  Bc6 {[%clk 0:01:58]} 15. Bc3 {[%clk 0:01:24]}  b5 {[%clk 0:01:44]} 16. cxb6 {[%clk 0:01:22]}  cxb6 {[%clk 0:01:45]} 17. Rfc1 {[%clk 0:00:46]}  b5 {[%clk 0:01:42]} 18. Be2 {[%clk 0:00:46]}  Bd5 {[%clk 0:01:26]} 19. Qd1 {[%clk 0:00:46]}  a5 {[%clk 0:01:26]} 20. Qd2 {[%clk 0:00:42]}  Bd8 {[%clk 0:01:14]} 21. Qe1 {[%clk 0:00:39]}  f5 {[%clk 0:01:07]} 22. Bd2 {[%clk 0:00:39]}  Bb6 {[%clk 0:00:47]} 23. Qf1 {[%clk 0:00:40]}  Bc6 {[%clk 0:00:48]} 24. Rc2 {[%clk 0:00:40]}  Rfc8 {[%clk 0:00:48]} 25. Rac1 {[%clk 0:00:40]}  h6 {[%clk 0:00:37]} 26. Bxb5 {[%clk 0:00:26]}  Bxb5 {[%clk 0:00:29]} 27. Rxc8+ {[%clk 0:00:26]}  Rxc8 {[%clk 0:00:30]} 28. Rxc8+ {[%clk 0:00:26]}  Qxc8 {[%clk 0:00:31]} 29. Qxb5 {[%clk 0:00:26]}  Qc2 {[%clk 0:00:32]} 30. Bc3 {[%clk 0:00:22]}  Qd1+ {[%clk 0:00:26]} 31. Qf1 {[%clk 0:00:22]}  Qb3 {[%clk 0:00:27]} 32. h3 {[%clk 0:00:21]}  Bc7 {[%clk 0:00:22]} 33. Qc1 {[%clk 0:00:18]}  Kh7 {[%clk 0:00:16]} 34. g3 {[%clk 0:00:17]}  Qd5 {[%clk 0:00:13]} 35. Bd2 {[%clk 0:00:16]}  Qb7 {[%clk 0:00:09]} 36. b4 {[%clk 0:00:15]}  axb4 {[%clk 0:00:09]} 37. Bxb4 {[%clk 0:00:16]}  Bd8 {[%clk 0:00:05]} 38. Qc4 {[%clk 0:00:16]}  Qd7 {[%clk 0:00:06]} 39. Bc5 {[%clk 0:00:14]}  g5 {[%clk 0:00:06]} 40. a4 {[%clk 0:00:14]}  Kg6 {[%clk 0:00:07]} 41. Qb5 {[%clk 0:00:14]}  Qf7 {[%clk 0:00:04]} 42. Bd6 {[%clk 0:00:13]}  f4 {[%clk 0:00:03]} 43. exf4 {[%clk 0:00:13]}  Bf6 {[%clk 0:00:02]} 44. Be5 {[%clk 0:00:11]}  gxf4 {[%clk 0:00:03]} 45. Qe2 {[%clk 0:00:06]}  Bxe5 {[%clk 0:00:02]} 46. Qxe4+ {[%clk 0:00:06]}  Kg7 {[%clk 0:00:01]} 47. Qxe5+ {[%clk 0:00:06]}  Kg8 {[%clk 0:00:02]} 48. Qxf4 {[%clk 0:00:07]}  Qd7 {[%clk 0:00:02]} 49. Qe5 {[%clk 0:00:07]}  Qxa4 {[%clk 0:00:02]} 50. Qxe6+ {[%clk 0:00:08]}  Kh7 {[%clk 0:00:03]} 51. Qe5 {[%clk 0:00:08]}  Qd1+ {[%clk 0:00:02]} 52. Kg2 {[%clk 0:00:09]}  Qb1 {[%clk 0:00:03]} 53. Qe3 {[%clk 0:00:09]}  Qb5 {[%clk 0:00:04]} 54. Qf3 {[%clk 0:00:09]}  Qc4 {[%clk 0:00:04]} 55. Qe4+ {[%clk 0:00:09]}  Kg7 {[%clk 0:00:04]} 56. h4 {[%clk 0:00:10]}  h5 {[%clk 0:00:04]} 57. Qe5+ {[%clk 0:00:11]}  Kh6 {[%clk 0:00:04]} 58. Qg5+ {[%clk 0:00:11]}  Kh7 {[%clk 0:00:05]} 59. Qxh5+ {[%clk 0:00:12]}  Kg7 {[%clk 0:00:06]} 60. Qg4+ {[%clk 0:00:12]}  Kh7 {[%clk 0:00:07]} 61. Qe4+ {[%clk 0:00:13]}  Kh8 {[%clk 0:00:07]} 62. Qe5+ {[%clk 0:00:13]}  Kh7 {[%clk 0:00:07]} 63. d5 {[%clk 0:00:12]}  Qd3 {[%clk 0:00:08]} 64. d6 {[%clk 0:00:12]}  Qd1 {[%clk 0:00:08]} 65. Qe7+ {[%clk 0:00:12]}  Kh6 {[%clk 0:00:06]} 66. Qe6+ {[%clk 0:00:10]}  Kh5 {[%clk 0:00:02]} 67. Qf5+ {[%clk 0:00:08]}  Kh6 {[%clk 0:00:03]} 68. d7 {[%clk 0:00:06]}  Qd3 {[%clk 0:00:01]} 69. Qe6+ {[%clk 0:00:06]}  Kh5 {[%clk 0:00:02]} 70. Qe8+ {[%clk 0:00:06]}  Kg4 {[%clk 0:00:02]} 71. Qe6+ {[%clk 0:00:05]}  Kh5 {[%clk 0:00:02]} 72. Qe8+ {[%clk 0:00:05]}  Kg4 {[%clk 0:00:02]} 73. Qg8+ {[%clk 0:00:06]}  Kf5 {[%clk 0:00:02]} 74. Qh7+ {[%clk 0:00:06]}  Kg4 {[%clk 0:00:02]} 75. Qxd3 {[%clk 0:00:05]}  Kh5 {[%clk 0:00:03]} 76. Qh7+ {[%clk 0:00:05]}  Kg4 {[%clk 0:00:04]} 77. Qg6# {[%clk 0:00:06]} 1-0


[Site "https://www.chess.com"]